Cogmind - Beta 15 @@@ ROGUE MODE // 2025.09.10 @ 12:22:21 Player: cingulata Result: Destroyed by G-34 Mercenary with Small Laser Performance ------------- Evolutions (0) 0 Regions Visited (2) 400 Robots Destroyed (29) 145 Value Destroyed (552) 552 Prototype IDs (0) 0 Alien Tech Used (0) 0 Bonus (0) 0 TOTAL SCORE: 1097 Bonus ------- None Cogmind --------- Core Integrity 0/250 Matter 264/300 Energy 79/265 System Corruption 0% Temperature Cool (10) Movement Treading (160) Location -10/Mines Parts ------- > --- POWER (1) -------- Improved Ion Engine > --- PROPULSION (2) --- Light Treads Light Treads > --- UTILITY (2) ------ Improved Heat Sink Large Storage Unit > --- WEAPON (2) ------- Beam Rifle Beam Rifle > --- INVENTORY (15) --- Light Treads Compact Wheel Huge Storage Unit Medium Battery (150) Sensor Array Seismic Detector Utility Shielding Shotgun Rocket Launcher Rocket Launcher Hammer Peak State ------------ > --- POWER ------------ Improved Ion Engine > --- PROPULSION ------- Light Treads Light Treads > --- UTILITY ---------- Improved Heat Sink Large Storage Unit > --- WEAPON ----------- Beam Rifle Beam Rifle > --- INVENTORY -------- Improved Ion Engine Light Treads Light Treads Light Treads Compact Wheel Medium Battery Sensor Array Seismic Detector Utility Shielding Beam Rifle Shotgun Shotgun Rocket Launcher Rocket Launcher Hammer [Rating: 14] Favorites ----------- Power Improved Ion Engine Engine Improved Ion Engine Propulsion Light Treads Treads Light Treads Leg Aluminum Leg Wheel Compact Wheel Utility Large Storage Unit Device Seismic Detector Storage Large Storage Unit Protection Utility Shielding Weapon Beam Rifle Energy Gun Beam Rifle Ballistic Gun Assault Rifle Launcher Rocket Launcher Impact Weapon Hammer Slashing Weapon Mining Claw Build | -11 -10 -10 ------- Run | Yrd Mat Min Slots Evolved . | . . . Power . | . . . Propulsion . | . . . Utility . | . . . Weapon . | . . . Parts Attached 26 | 1 19 6 Power 3 | . 2 1 Engine 3 | . 2 1 Core . | . . . Reactor . | . . . Propulsion 5 | . 3 2 Treads 4 | . 3 1 Leg . | . . . Wheel 1 | . . 1 Hover . | . . . Flight . | . . . Utility 7 | 1 4 2 Device 4 | 1 2 1 Storage 2 | . 1 1 Processor . | . . . Hackware . | . . . Protection 1 | . 1 . Artifact . | . . . Weapon 11 | . 10 1 Energy Gun 7 | . 6 1 Energy Cannon . | . . . Ballistic Gun 1 | . 1 . Ballistic Cannon . | . . . Launcher 1 | . 1 . Special Weapon . | . . . Impact Weapon 1 | . 1 . Slashing Weapon 1 | . 1 . Piercing Weapon . | . . . Special Melee Weapon . | . . . Unidentified Prototypes . | . . . Parts Lost 4 | . . 4 Power 1 | . . 1 Propulsion 2 | . . 2 Utility . | . . . Weapon 1 | . . 1 Highest Loss Streak 3 | . . 3 To Critical Strikes . | . . . Average Backups 13 | 7 13 14 Power 1 | 1 1 . Propulsion 3 | 4 3 3 Utility 2 | . 2 4 Weapon 5 | 1 6 5 Tool/Special . | . . . Unused Backups 28 | 7 16 5 Power 3 | 1 2 . Propulsion 7 | 2 4 1 Utility 4 | 1 2 1 Weapon 14 | 3 8 3 Tool/Special . | . . . Average Slot Usage (%) 99 | . 99 97 Engine 13 | . 14 12 Treads 14 | . 11 26 Leg 12 | . 16 . Device 13 | . 13 12 Storage 14 | . 14 14 Energy Gun 19 | . 17 25 Ballistic Gun 7 | . 9 . Peak Build Rating 14 | 7 14 14 Average Rating 10 | 6 10 11 On Entrance 8 | 6 7 12 Naked Turns . | . . . Heaviest Build 35 | 12 35 34 Greatest Support 40 | 20 40 40 Greatest Overweight (x) 2 | . 1 2 Average Overweight (x) . | . . . Largest Inventory Capacity 25 | 8 15 25 Average Capacity 14 | 8 14 15 Most Carried 15 | 8 15 15 Average Carried 13 | 7 13 14 Final Capacity 15 | 8 15 15 Final Carried 15 | 8 15 11 Class Distribution -------------------- 100% | Mutant Dominant Class ---------------- Mutant | -10/Materials Mutant | -10/Mines Resources | -11 -10 -10 ----------- Run | Yrd Mat Min Matter Collected 707 | 258 293 156 Remotely . | . . . Salvage Created 844 | 151 516 177 Parts 65 | 12 36 17 Haulers Intercepted 1 | . 1 . Recyclers Shooed 2 | 1 1 . Parts Field Recycled . | . . . Retrieved Matter . | . . . Parts Self-Destructed . | . . . Prevented . | . . . Kills | -11 -10 -10 ------- Run | Yrd Mat Min Combat Hostiles Destroyed 19 | . 12 7 Guns 16 | . 11 5 AOE 2 | . . 2 Classes Destroyed 8 | 2 5 1 Worker 1 | . . 1 Tunneler 3 | 3 . . Hauler 1 | . 1 . Recycler 2 | 1 1 . Operator 1 | . 1 . Watcher 2 | . 2 . Swarmer 10 | . 6 4 Grunt 9 | . 6 3 Best Kill Streak 3 | 2 3 3 Combat Bots Only 3 | . 3 3 Max Kills in Single Turn 2 | 1 1 2 Gunslinging 1 | . . 1 Exploded 2 | . . 2 Melee . | . . . Uniques/NPCs Destroyed . | . . . Combat | -11 -10 -10 -------- Run | Yrd Mat Min Hostile Shots Fired 150 | . 56 94 Missed 34 | . 14 20 Hits 116 | . 42 74 Projectile 116 | . 42 74 Critical Strikes 1 | . . 1 Damage Taken 1172 | . 391 781 Core 259 | . 145 114 Absorbed by Shields . | . . . Redirected to Shielding 7 | . . 7 Core Remaining (%) 100 | 100 . . Volleys Fired 94 | 12 55 27 Largest 2 | 2 2 2 Hottest 121 | 40 121 112 Shots Fired 177 | 24 109 44 Gun 175 | 24 109 42 Cannon . | . . . Launcher 2 | . . 2 Special . | . . . Kinetic 49 | 24 25 . Thermal 126 | . 84 42 Explosive 2 | . . 2 Electromagnetic . | . . . Robot Hit Streak 6 | 5 6 4 Robot Miss Streak 4 | 2 3 4 Penetration Max . | . . . Secondary Targets 2 | . 1 1 Max Gunslinging Chain 1 | . 1 1 Shots Hit Robots 92 | 14 56 22 Core Hits 42 | 7 24 11 Critical Kills . | . . . Critical Parts Destroyed . | . . . Critical Strikes 7 | . 4 3 Burn 7 | . 4 3 Melee Attacks 10 | . 10 . Impact 6 | . 6 . Slashing 4 | . 4 . Piercing . | . . . Sneak Attacks . | . . . Combat Hostiles . | . . . Follow-up Attacks . | . . . Damage Inflicted 1452 | 163 778 511 Guns 1300 | 163 778 359 Cannons . | . . . Explosions 152 | . . 152 Melee . | . . . Ramming . | . . . Kinetic 310 | 163 147 . Thermal 990 | . 631 359 Explosive 152 | . . 152 Electromagnetic . | . . . Impact . | . . . Slashing . | . . . Piercing . | . . . Highest Corruption . | . . . Average Corruption . | . . . Corruption Purged . | . . . Corruption Blocked . | . . . Overload Shots . | . . . Overflow Damage . | . . . Projectiles . | . . . Explosions . | . . . Melee . | . . . Knockbacks . | . . . Impact . | . . . Kinetic . | . . . Secondary . | . . . Self-Inflicted Damage 22 | . . 22 Shots 2 | . . 2 Rammed . | . . . Targets Rammed . | . . . Kicked . | . . . Crushed . | . . . Highest Temperature 399 | . 269 399 Average Temperature 99 | . 81 145 Received Heat Transfer 387 | . 111 276 Effects 3 | . 3 . Interference 3 | . 3 . Siege Activations . | . . . Martial Activations . | . . . Shielding Activations . | . . . Robots Disrupted . | . . . Combat Hostiles . | . . . Robots Corrupted . | . . . Combat Hostiles . | . . . Parts Fried . | . . . Impact Corruptions . | . . . Robots Melted 1 | . 1 . Combat Hostiles 1 | . 1 . Parts Melted 5 | . 4 1 Heat Transferred 3071 | . 1924 1147 Parts Sabotaged . | . . . Parts Stolen . | . . . Parts Stripped . | . . . Power Chain Reactions . | . . . Alert | -11 -10 -10 ------- Run | Yrd Mat Min Maximum Alert Level . | . . . Low Security (%) 100 | 100 100 100 Level 1 . | . . . Level 2 . | . . . Level 3 . | . . . Level 4 . | . . . Level 5 . | . . . High Security . | . . . Max Security . | . . . Peak Influence 94 | 10 94 70 Initial . | . . . Average 17 | 2 18 19 Influence Increases 603 | 20 384 199 Destroy 0b10 Robot/C 380 | . 240 140 Destroy 0b10 Robot/NC 50 | 20 25 5 Destroy Leader 96 | . 56 40 Successful Hack 36 | . 36 . Disable Machine 15 | . 15 . Destroy Structure 26 | . 12 14 Influence Decreases 561 | 20 384 157 Time Decay 435 | 20 298 117 Lost Part 40 | . . 40 Purge Threat 86 | . 86 . Squads Dispatched 1 | . 1 . Investigation . | . . . Extermination . | . . . Reinforcement 1 | . 1 . Assault . | . . . Garrison . | . . . Intercept . | . . . Searches Triggered . | . . . Construction Impeded . | . . . Haulers Reinforced . | . . . Active Scanning Responses . | . . . Cargo Convoy Interrupts . | . . . Stealth | -11 -10 -10 --------- Run | Yrd Mat Min Distress Signals 1 | . 1 . Communications Jammed . | . . . Distress Signals . | . . . Times Spotted 34 | . 24 10 Peak Tracking Total 5 | . 4 5 Tactical Retreats . | . . . Traps | -11 -10 -10 ------- Run | Yrd Mat Min Traps Triggered . | . . . Indirectly . | . . . Trap Hack Attempts . | . . . Triggered . | . . . Disarmed . | . . . Reprogrammed . | . . . Reused . | . . . Traps Extracted . | . . . Installed . | . . . Triggered . | . . . Machines | -11 -10 -10 ---------- Run | Yrd Mat Min Machines Disabled 1 | . 1 . Max in Single Turn 1 | . 1 . Machines Repaired . | . . . Machines Dismantled . | . . . Machines Sabotaged . | . . . Overloaded Fab Kills . | . . . Hacking | -11 -10 -10 --------- Run | Yrd Mat Min Machines Accessed 8 | . 8 . Terminals 6 | . 6 . Fabricators . | . . . Repair Stations . | . . . Recycling Units 2 | . 2 . Scanalyzers . | . . . Garrison Access . | . . . Total Hacks 15 | . 15 . Successful 9 | . 9 . Failed 6 | . 6 . Catastrophic . | . . . Database Lockouts . | . . . Manual 9 | . 9 . Terminals 12 | . 12 . Fabricators . | . . . Repair Stations . | . . . Recycling Units 3 | . 3 . Scanalyzers . | . . . Garrison Access . | . . . Terminal Hacks 3 | . 3 . Unreport Threat 1 | . 1 . Locate Traps 2 | . 2 . Fabricator Hacks . | . . . Repair Station Hacks . | . . . Recycling Unit Hacks 2 | . 2 . Retrieve Components 2 | . 2 . Scanalyzer . | . . . Garrison Access Hacks . | . . . Unauthorized Hacks 4 | . 4 . Terminals 4 | . 4 . Botnet 3 | . 3 . Operators 1 | . 1 . Fabricators . | . . . Repair Stations . | . . . Recycling Units . | . . . Scanalyzers . | . . . Garrison Access . | . . . Data Cores Recovered . | . . . Used . | . . . Hacking Detections 7 | . 7 . Full Trace Events . | . . . Feedback Events . | . . . Feedback Blocked . | . . . Robot Schematics Acquired . | . . . Robots Built . | . . . Authchips . | . . . Time . | . . . Total Robot Build Rating . | . . . Part Schematics Acquired . | . . . Parts Built . | . . . Authchips . | . . . Time . | . . . Total Part Build Rating . | . . . Parts Repaired . | . . . Time . | . . . Parts Recycled . | . . . Recycled Matter . | . . . Retrieved Matter . | . . . Retrieved Components 11 | . 11 . Parts Scanalyzed . | . . . Part Schematics Acquired . | . . . Parts Damaged . | . . . Bothacking | -11 -10 -10 ------------ Run | Yrd Mat Min Used RIF Installer . | . . . Robots Hacked . | . . . Non-combat . | . . . Combat . | . . . Robot Hacks Applied . | . . . Relay Couplers Released . | . . . Fabnet Peak Effective % . | . . . Robots Rewired . | . . . Allies Hacked . | . . . Hacks Repelled . | . . . Allies | -11 -10 -10 -------- Run | Yrd Mat Min Total Allies . | . . . Largest Group . | . . . Highest-Rated Group . | . . . Highest-Rated Ally . | . . . Total Orders . | . . . Ally Attacks . | . . . Total Damage . | . . . Kills . | . . . Allies Corrupted . | . . . Allies Melted . | . . . Intel | -11 -10 -10 ------- Run | Yrd Mat Min Active Infowar (turns) 2035 | 18 1679 338 Sensors 338 | . . 338 Seismic 1697 | 18 1679 . Robot Analysis Total . | . . . Derelict Logs Recovered 1 | . . 1 Drone Launches . | . . . Drone Recoveries . | . . . Exploration | -11 -10 -10 ------------- Run | Yrd Mat Min Turns Passed 2375 | 92 1803 480 Spaces Moved 1073 | 40 795 238 Core . | . . . Treads 559 | . 361 198 Legs 474 | 40 434 . Wheels 40 | . . 40 Hover . | . . . Flight . | . . . Fastest Speed 115 | 120 120 115 Average Speed 166 | 120 173 152 Slowest Speed 190 | 120 190 160 Overloaded Moves . | . . . Propulsion Burnouts . | . . . Robots Hopped . | . . . Potential Cave-ins . | . . . Cave-ins Triggered . | . . . Exploration Rate (%) 47 | 3 97 43 Regions Visited 2 Branch Regions 1 Pre-discovered Areas . | . . . Known Exits Taken . | . . . Unknown Exits Taken 2 | 1 1 . Scrap Searched 1 | . . 1 Spaces Dug 5 | . 5 . Terrain Destroyed 26 | . 5 21 Melee 5 | . 5 . Projectile . | . . . AOE 21 | . . 21 Terrain Rammed . | . . . Walls Destroyed . | . . . Machines Disabled . | . . . Actions | -11 -10 -10 --------- Run | Yrd Mat Min Total 1473 | 63 1102 308 Wait 188 | 7 156 25 Move 1071 | 39 794 238 Hop . | . . . Pick Up 33 | 3 29 1 Fast Attach 2 | 1 1 . Attach 4 | . . 4 Detach . | . . . Swap 38 | . 27 11 Drop 33 | 1 30 2 Fire 94 | 12 55 27 Melee 10 | . 10 . Ram . | . . . Kick . | . . . Crush . | . . . Escape Stasis . | . . . Rewire . | . . . Trap . | . . . Miscellaneous . | . . . Route ------- -11/Scrapyard -10/Materials (discovered 4 exits: [*Mat x3] / [*Min]) -10/Mines History --------- Turn | Location | Event 18 | -11/Scrapyard | Discovered new exit (range 3) 93 | -11/Scrapyard | Entered Materials 315 | -10/Materials | Build established: Mutant 671 | -10/Materials | Discovered new exit (range 14) 1081 | -10/Materials | Discovered new exit (range 7) 1210 | -10/Materials | Discovered new exit (range 16) 1548 | -10/Materials | Core integrity fell below 50% 1592 | -10/Materials | Discovered new exit (range 5) 1896 | -10/Materials | Entered Mines 1914 | -10/Mines | Met a Derelict bent on vengeance 2296 | -10/Mines | Core integrity fell below 20% 2343 | -10/Mines | Lost 3 parts (1p1n1w) 2376 | -10/Mines | Destroyed by G-34 Mercenary with Small Laser Last Messages --------------- 02276_ R-06 Scavenger collects Lgt. Assault Rifle. 02277_ K-01 Serf collects debris. 02291_ K-01 Serf suffers critical hit (Burn). 02291_ Lgt. Ion Engine melted. 02291_ K-01 Serf destroyed. 02293_ Lgt. Treads destroyed. 02297_ Critical hit (Burn: +37). 02301_ G-47 Trooper suffers critical hit (Burn). 02301_ G-34 Mercenary suffers critical hit (Burn). 02301_ G-47 Trooper overheating. 02303_ G-47 Trooper heat damages Lgt. Nuclear Core. 02310_ Beam Rifle destroyed. 02312_ Imp. Ion Engine destroyed. 02358_ S-10 Pest destroyed. 02362_ G-47 Trooper destroyed. 02363_ Acquired 44 matter. 02371_ Lgt. Treads destroyed. Map ----- +----------------------------------------------------+ | ??????#[#?## ##????????#### ##?# ##??? | | ??????# #??# #????????## ### ##?? | | ??##### #??# #???????## ## ##? | | ?## #### ######### ## #? | | ?# ## #? | | ?## ## ## #? | | ?# [ ########## #### #### #? | | # = #????????## ##?## ##??# % *#? | | # # #????????## #?## #???# %*%=#? | | ## #???????## ### ##??# =## | | ?## ####??????## ##?## = # | | ??######???????### #??## =%= | | ??????????????## ## #???## ! | | ?????????????## ######## ##????# | | ????????###?## ##??????### ####?????## ### | | ???????## ## ##????????####?????????####??# | | ???????# #####????????????????????????# | | ???????# ##???????????????????????? | | ???????## #???????????????????????? | | ????????#### ##??????????????????????? | | ???????????## """ ##?????????????????????? | | ????????????#### """ ##????????????????????? | | ???????????????## """ s #????????????????????? | | ???????????????## """ = #????????????????????? | | ????????????#### ##gs##????????????????????? | | ??????????### ###@##?????????????????????? | | ?????????## #?# #??????????????????????? | | ?????????# # #?# #??????????????????????? | | ?????????# ## #?# #??????????????????????? | | ?????????# ### #?# ??????????????????????? | | ?????????# ##?# #?###??????????????????????? | | ?????????## ##??# ??????????????????????????? | | ??????????# ###???### #?????????????????????????? | | ?????????## ######### #?????????????????????????? | | ?????????# #?????????????????????????? | | ?????????# ########## #?????????????????????????? | | ?????????# #????????? ?????????????????????????? | | ?????????# #?????????""?????????????????????????? | | ?????????# #?????????""?????????????????????????? | | ?????????# #????????????????????????????????????? | | ?????????# #????????????????????????????????????? | | ?????????# #????????????????????????????????????? | | ?????????# #????????????????????????????????????? | | ?????????# #?####???????????????????????????????? | | ????????## ## ##??????????????????????????????? | | ????????# #??????????????????????????????? | | ????????# #??????????????????????????????? | | ????????# ##??????????????????????????????? | | ????????### #???????????????????????????????? | | ??????????## #???????????????????????????????? | +----------------------------------------------------+ Best States ------------- Heat Dissipation 39 Energy Generation 12 Energy Capacity 265 Matter Stores 300 Matter Capacity 300 Sight Range 16 Robot Scan Range 14 Terrain Scan Density 10 Utility Shielding 33 Evasion (%) 55 Recoil Reduction 2 Item Schematics ----------------- None Robot Schematics ------------------ None Fabricated ------------ Nothing Repaired ---------- Nothing Alien Tech Used ----------------- None Achievements -------------- None Challenges ------------ None Game ------ Seed ImpactCombatLauncher Manual? 0 Play Time 00:27:23 Cumulative 121.1 hours Start 2025.09.10 @ 11:48:18 End 2025.09.10 @ 12:22:21 Sessions 1 Manual Loads 0 Difficulty Rogue Special Mode None Game No. 64 Rogue 60 Adventurer 1 Explorer 3 Win Type - Total 4 Types 3/1/0/0/0/0/0/0/0/0 Lore% 57 Gallery% 59 Achievement% 56 Wizard Run 0 Options --------- Layout 2 ASCII 0 Keyboard 1 Movement Numpad Keybinds 0 Fullscreen 1 Font 32/SmallcapsGlow Map View 50x44 Zoom Use 0% Tactical HUD 1 Map Filters NONE Filters NONE Steam 1 RUN: ec44bb57-7022-4af1-a6b4-ff1186cb9792